bitfinex/quotes_SOLUSD_20241013
["timestamp","ask_amount","ask_price","bid_price","bid_amount"]
[1728857226056,0.34526937,148.76,148.73,23.77303293]
[1728857226964,0.34526937,148.76,148.73,17.04953293]
[1728857227290,0.34526937,148.76,148.72,6.724]
[1728857228081,7.06756937,148.76,148.71,16.8105]
[1728857228485,0.34526937,148.76,148.73,6.7233]
[1728857228687,15.68536937,148.77,148.74,6.7231]
[1728857229579,0.34526937,148.78,148.75,6.7226]
[1728857230180,16.2645,148.81,148.79,6.7204]
[1728857230181,16.60976937,148.81,148.79,6.7204]
[1728857230357,16.2645,148.85,148.79,6.7204]
[1728857230562,7.06426937,148.84,148.78,23.5234]
[1728857230770,0.34526937,148.84,148.75,16.8065]
[1728857230961,0.34526937,148.84,148.75,23.5287]
[1728857231280,6.7205,148.8,148.75,16.8065]
[1728857231482,0.34526937,148.79,148.75,16.8065]
[1728857231981,6.72,148.81,148.75,23.5287]
[1728857232282,0.34526937,148.8,148.75,23.5287]
[1728857232689,6.72,148.81,148.78,6.7213]
[1728857232690,0.34526937,148.81,148.78,6.7213]
[1728857232868,0.34526937,148.82,148.79,8.06486133]
[1728857233186,0.34526937,148.84,148.8,6.7203]
[1728857233660,0.34526937,148.84,148.79,1.34416133]
[1728857233964,0.34526937,148.84,148.79,6.7204]
[1728857234170,0.34526937,148.84,148.8,6.7202]
[1728857234481,0.34526937,148.84,148.78,18.14705379]
[1728857234685,0.34526937,148.84,148.79,6.7208]
[1728857234979,16.2645,148.85,148.8,1.34396266]
[1728857235186,16.2645,148.85,148.78,33.85263293]
[1728857235187,16.60976937,148.85,148.78,33.85263293]
[1728857235357,6.7195,148.82,148.78,16.8031]
[1728857235559,0.34526937,148.81,148.77,6.7217]
[1728857235870,0.34526937,148.84,148.8,6.7199]
[1728857236299,7.06426937,148.84,148.79,16.8012]
[1728857236589,7.06426937,148.84,148.79,23.5219]
[1728857237177,0.34526937,148.84,148.77,1.34402733]
[1728857237384,6.7204,148.8,148.75,23.5282]
[1728857237576,0.34526937,148.84,148.75,16.8056]
[1728857237782,6.72,148.81,148.76,6.7221]
[1728857238087,7.06426937,148.83,148.78,6.7213]
[1728857238295,7.06426937,148.83,148.77,23.525]
[1728857238595,6.7197,148.82,148.77,23.525]
[1728857238778,7.06446937,148.83,148.78,8.06534916]
[1728857240198,0.34526937,148.83,148.8,6.7203]
[1728857240383,16.2645,148.85,148.8,6.7203]
[1728857240384,0.34526937,148.84,148.8,6.7203]
[1728857240571,0.34526937,148.84,148.81,6.7196]
[1728857240906,0.34526937,148.84,148.79,16.8012]
[1728857240907,0.34526937,148.84,148.79,23.5216]
[1728857241676,0.34526937,148.84,148.8,6.7202]
[1728857242600,0.34526937,148.84,148.79,16.8012]
[1728857242772,16.3558,148.89,148.83,6.7189]
[1728857242973,0.34526937,148.87,148.84,6.7185]
[1728857243200,0.34526937,148.87,148.81,16.7989]
[1728857243491,6.7182,148.85,148.81,16.7989]
[1728857243701,0.34526937,148.84,148.81,16.7989]
[1728857243880,6.7182,148.85,148.81,16.7989]
[1728857244387,0.34526937,148.88,148.82,1.34384895]
[1728857244586,6.7172,148.87,148.82,8.06334895]
[1728857244787,0.34526937,148.86,148.82,8.06334895]
[1728857245385,0.34526937,148.87,148.83,6.7189]
[1728857246814,0.34526937,148.87,148.81,16.7989]
[1728857246815,0.34526937,148.87,148.81,23.5187]
[1728857247101,6.7178,148.86,148.81,23.5187]
[1728857247303,0.34526937,148.85,148.81,23.5187]
[1728857247496,6.7186,148.84,148.79,6.7205]
[1728857248279,0.34526937,148.88,148.8,6.7203]
[1728857248280,6.7182,148.85,148.8,6.7203]
[1728857248484,0.34526937,148.84,148.8,6.7203]
[1728857250791,0.34526937,148.84,148.8,6.7204]
[1728857251108,6.7182,148.85,148.8,6.7204]
[1728857251319,0.34526937,148.84,148.8,6.7204]
[1728857252487,7.06386937,148.84,148.8,6.7204]
[1728857253194,6.7191,148.83,148.78,16.8029]
[1728857253505,0.34526937,148.82,148.78,16.8029]
[1728857253712,0.34526937,148.82,148.75,16.8064]
[1728857253918,6.7217,148.78,148.72,6.7236]
[1728857254208,65.90855337,148.85,148.72,16.8096]
[1728857254209,0.34526937,148.77,148.72,16.8096]
[1728857254388,6.7218,148.77,148.72,23.5336]
[1728857254588,0.34526937,148.76,148.72,23.5336]
[1728857255013,7.06746937,148.76,148.72,16.8096]
[1728857255917,6.7228,148.75,148.69,6.7249]
[1728857256093,0.34526937,148.74,148.69,6.7249]
[1728857256687,0.34526937,148.74,148.68,16.8136]
[1728857256887,6.724,148.72,148.68,16.8136]
[1728857257194,6.724,148.72,148.66,6.7263]
[1728857257195,0.34526937,148.71,148.66,6.7263]
[1728857257400,23.13086937,148.71,148.66,6.7263]
[1728857257594,16.40636937,148.71,148.66,6.7263]
[1728857257800,16.40636937,148.71,148.67,6.7261]
[1728857258606,0.34526937,148.72,148.68,8.07081728]
[1728857258913,7.06836937,148.74,148.69,6.7253]
[1728857259114,7.06836937,148.74,148.68,6.7257]
[1728857259318,6.7236,148.73,148.68,6.7257]
[1728857259514,0.34526937,148.72,148.68,6.7257]
[1728857259812,0.34526937,148.72,148.66,33.86523293]
[1728857260012,7.06926937,148.72,148.67,6.7262]
[1728857260516,0.34526937,148.71,148.67,6.7262]
[1728857260919,0.34526937,148.74,148.68,1.34510761]
[1728857261220,0.34526937,148.74,148.69,6.7253]
[1728857261606,6.7237,148.73,148.67,6.726]
[1728857261823,0.34526937,148.72,148.67,6.726]
[1728857262604,0.34526937,148.72,148.67,8.07108992]
[1728857263517,0.34526937,148.72,148.68,35.20821981]
[1728857263701,0.34526937,148.74,148.68,35.20821981]
[1728857264619,0.34526937,148.74,148.7,6.7249]
[1728857264795,0.34526937,148.74,148.69,6.7253]
[1728857266021,7.06856937,148.74,148.69,6.7253]
[1728857266919,6.7245,148.71,148.66,6.7265]
[1728857267122,0.34526937,148.7,148.66,6.7265]
[1728857267296,7.07016937,148.7,148.65,6.7271]
[1728857267697,0.34526937,148.7,148.65,6.7271]
[1728857267907,6.7245,148.71,148.66,6.7267]
[1728857268102,0.34526937,148.7,148.66,6.7267]
[1728857268925,7.07016937,148.7,148.65,6.7271]
[1728857269132,6.7254,148.69,148.64,17.6476281]
[1728857269331,0.34526937,148.68,148.64,17.6476281]
[1728857269898,0.34526937,148.68,148.64,24.3750281]
[1728857270713,0.34526937,148.68,148.64,17.6476281]
[1728857270919,6.7253,148.7,148.65,6.7272]
[1728857271211,0.34526937,148.69,148.65,6.7272]
[1728857271414,0.34526937,148.69,148.64,17.6476281]
[1728857271623,6.7254,148.69,148.64,24.3751281]
[1728857271911,0.34526937,148.68,148.64,24.3751281]
[1728857272222,39.53375337,148.68,148.64,17.6476281]
[1728857272408,46.25985337,148.68,148.64,0.8295281]
[1728857274119,46.25985337,148.68,148.64,7.5571281]
[1728857274318,15.75686937,148.68,148.64,7.5571281]
[1728857274619,15.75686937,148.68,148.64,0.8295281]
[1728857274823,15.75686937,148.68,148.64,7.5571281]
[1728857276219,15.75686937,148.68,148.65,6.7272]
[1728857276742,0.34526937,148.7,148.67,6.7262]
[1728857277117,0.34526937,148.7,148.66,6.7267]
[1728857278038,0.34526937,148.7,148.68,6.7257]
[1728857278227,0.34526937,148.71,148.68,6.7257]
[1728857278626,0.34526937,148.71,148.67,23.5412]
[1728857279933,0.34526937,148.71,148.67,16.815]
[1728857280440,7.06976937,148.71,148.67,23.5412]
[1728857280822,7.06976937,148.71,148.67,16.815]
[1728857281018,30.501784,148.7,148.66,6.7267]
[1728857281222,0.34526937,148.69,148.66,6.7267]
[1728857281844,0.34526937,148.7,148.67,6.7261]
[1728857282429,0.34526937,148.7,148.66,6.7266]
[1728857283161,6.7255,148.69,148.64,24.3758281]
[1728857283358,0.34526937,148.68,148.65,6.7271]
[1728857283850,0.34526937,148.69,148.65,6.7271]
[1728857284029,0.34526937,148.69,148.66,6.7266]
[1728857284351,0.34526937,148.69,148.64,34.69776103]
[1728857284553,0.34526937,148.69,148.67,6.7262]
[1728857284730,0.34526937,148.7,148.67,6.7262]
[1728857285048,0.34526937,148.7,148.66,6.7266]
[1728857285448,7.07026937,148.7,148.64,17.6482281]
[1728857285658,23.776884,148.68,148.64,17.6482281]
[1728857285947,0.34526937,148.67,148.64,0.8295281]
[1728857287242,0.34526937,148.67,148.65,6.727]
[1728857287556,24.12215337,148.69,148.65,6.727]
[1728857288657,0.34526937,148.69,148.66,6.7265]
[1728857288954,15.1562,148.72,148.66,6.7265]
[1728857288955,0.34526937,148.7,148.66,16.8168]
[1728857289840,0.34526937,148.71,148.67,6.7259]
[1728857290431,0.34526937,148.71,148.66,16.8168]
[1728857290755,24.12215337,148.71,148.66,16.8168]
[1728857291061,6.725,148.7,148.66,16.8168]
[1728857291268,0.34526937,148.69,148.66,16.8168]
[1728857293958,0.34526937,148.69,148.64,0.8295281]
[1728857293959,30.84765337,148.69,148.64,7.5570281]
[1728857296265,30.84765337,148.69,148.64,0.8295281]
[1728857296461,0.34526937,148.69,148.65,6.7271]
[1728857296838,7.07076937,148.69,148.64,7.5570281]
[1728857297367,6.7262,148.68,148.64,0.8295281]
[1728857297536,24.12215337,148.67,148.64,0.8295281]
[1728857297744,0.34526937,148.67,148.64,0.8295281]
[1728857298345,0.34526937,148.68,148.65,6.7272]
[1728857298541,0.34526937,148.68,148.64,0.8295281]
[1728857299448,0.34526937,148.69,148.64,0.8295281]
[1728857300061,0.34526937,148.69,148.66,6.7267]
[1728857302761,0.34526937,148.69,148.64,0.8295281]
[1728857303059,0.34526937,148.69,148.65,6.7271]
[1728857305242,7.07066937,148.69,148.65,6.7271]
[1728857306361,0.34526937,148.69,148.65,6.7271]
[1728857307862,0.34526937,148.69,148.64,2.1749723]
[1728857308164,0.34526937,148.69,148.66,6.7266]
[1728857310174,0.34526937,148.69,148.65,16.8173]
[1728857310378,24.12215337,148.71,148.64,0.8295281]
[1728857310551,23.776884,148.66,148.64,0.8295281]
[1728857310750,0.34526937,148.65,148.64,0.8295281]
[1728857311864,6.7259,148.68,148.64,0.8295281]
[1728857312178,0.34526937,148.71,148.67,10.97459994]
[1728857312478,0.34526937,148.71,148.68,6.7258]
[1728857312882,0.34526937,148.71,148.67,17.70079994]
[1728857313357,0.34526937,148.71,148.67,10.97459994]
[1728857313673,0.34526937,148.71,148.68,6.7257]
[1728857316788,15.1562,148.72,148.69,17.69989994]
[1728857316789,15.50146937,148.72,148.69,17.69989994]
[1728857316962,15.50146937,148.72,148.7,6.7248]
[1728857317163,0.34526937,148.74,148.71,17.69889994]
[1728857317477,0.34526937,148.74,148.73,10.97459994]
[1728857318291,0.34526937,148.75,148.71,10.97459994]
[1728857318667,24.12215337,148.75,148.71,10.97459994]
[1728857319671,24.12215337,148.75,148.67,10.97459994]
[1728857319862,6.7241,148.72,148.67,17.70039994]
[1728857320063,0.34526937,148.71,148.67,17.70039994]
[1728857320591,0.34526937,148.71,148.68,6.7258]
[1728857321666,7.06796937,148.75,148.7,6.7249]
[1728857321866,0.34526937,148.75,148.71,10.97459994]
[1728857322067,0.34526937,148.75,148.71,17.69889994]
[1728857323573,24.12215337,148.75,148.71,17.69889994]
[1728857323784,24.12215337,148.75,148.71,6.7243]
[1728857323963,0.34526937,148.75,148.71,6.7243]
[1728857324165,0.34526937,148.75,148.71,33.94129437]
[1728857324395,0.34526937,148.75,148.73,6.7232]
[1728857324694,0.34526937,148.81,148.76,6.7222]
[1728857324862,15.7032,148.82,148.76,6.7222]
[1728857324863,0.34526937,148.8,148.77,6.7216]
[1728857325488,0.34526937,148.8,148.76,18.14968742]
[1728857325695,0.34526937,148.81,148.79,6.7208]
[1728857325866,0.34526937,148.84,148.79,6.7208]
[1728857326060,0.34526937,148.84,148.77,18.47424124]
[1728857326283,0.34526937,148.84,148.8,6.7203]
[1728857326481,0.34526937,148.84,148.79,18.14619152]
[1728857326685,0.34526937,148.84,148.81,6.7199]
[1728857326988,0.34526937,148.85,148.81,6.7199]
[1728857327397,0.34526937,148.85,148.79,35.27628589]
[1728857327607,15.7032,148.86,148.77,6.4598]
[1728857327608,6.7167,148.89,148.84,6.7185]
[1728857327971,6.7167,148.89,148.82,23.5176]
[1728857328477,0.34526937,148.88,148.83,6.719]
[1728857330176,0.34526937,148.88,148.84,6.7182]
[1728857330480,6.7177,148.86,148.81,6.7195]
[1728857330686,0.34526937,148.85,148.78,16.8022]
[1728857330876,6.7186,148.84,148.78,23.5231]
[1728857331199,7.06436937,148.83,148.78,23.5231]
[1728857332701,0.34526937,148.83,148.79,6.7208]
[1728857332992,24.12215337,148.88,148.79,6.7208]
[1728857333196,23.776884,148.83,148.79,6.7208]
[1728857333383,0.34526937,148.82,148.79,6.7208]
[1728857334309,23.776884,148.85,148.8,6.7203]
[1728857334606,0.34526937,148.84,148.8,6.7203]
[1728857334983,7.06386937,148.84,148.78,23.5231]
[1728857335307,6.7209,148.79,148.75,16.8066]
[1728857335496,16.3602,148.83,148.75,16.8066]
[1728857335497,0.34526937,148.78,148.75,16.8066]
[1728857335683,6.7204,148.8,148.75,16.8066]
[1728857335883,0.34526937,148.79,148.75,16.8066]
[1728857336510,0.34526937,148.79,148.75,23.529]
[1728857336705,0.34526937,148.79,148.75,16.8066]
[1728857337012,24.12215337,148.81,148.76,6.7221]
[1728857338495,7.06536937,148.81,148.75,23.5292]
[1728857339718,7.06536937,148.81,148.75,16.8066]
[1728857339901,7.06536937,148.81,148.76,6.7221]
[1728857340083,0.34526937,148.81,148.76,6.7221]
[1728857340392,0.34526937,148.81,148.76,1.34427855]
[1728857341390,0.34526937,148.81,148.78,6.7209]
[1728857341582,0.34526937,148.82,148.77,16.8034]
[1728857341909,6.3966,148.86,148.8,6.7199]
[1728857341910,0.34526937,148.85,148.8,6.7199]
[1728857342810,0.34526937,148.85,148.79,18.14520203]
[1728857343106,0.34526937,148.86,148.84,6.7186]
[1728857343317,0.34526937,148.86,148.82,16.7986]
[1728857343905,0.34526937,148.86,148.82,23.518]
[1728857344105,16.0155,148.87,148.82,16.7986]
[1728857344417,0.34526937,148.86,148.82,16.7986]
[1728857344592,0.34526937,148.86,148.82,23.5176]
[1728857345796,0.34526937,148.86,148.82,16.7986]
[1728857345995,0.34526937,148.86,148.83,6.719]
[1728857346586,0.34526937,148.86,148.79,6.0323]
[1728857346796,6.7185,148.85,148.8,6.7199]
[1728857347089,0.34526937,148.84,148.8,6.7199]
[1728857347807,0.34526937,148.84,148.76,6.7221]
[1728857347808,6.72,148.81,148.76,6.7221]
[1728857347994,0.34526937,148.8,148.76,6.7221]
[1728857348195,0.34526937,148.8,148.77,6.7217]
[1728857348499,0.34526937,148.81,148.77,6.7217]
[1728857350622,0.34526937,148.81,148.78,6.7213]
[1728857350925,23.776884,148.85,148.79,6.7208]
[1728857350926,0.34526937,148.82,148.79,6.7208]
[1728857351732,0.34526937,148.83,148.79,6.7208]
[1728857352530,0.34526937,148.84,148.8,18.14498952]
[1728857352720,0.34526937,148.85,148.82,6.7194]
[1728857352921,0.34526937,148.85,148.84,6.7186]
[1728857353227,0.34526937,148.86,148.85,6.7177]
[1728857353522,7.06156937,148.89,148.83,16.7975]
[1728857353739,0.34526937,148.89,148.85,6.7181]
[1728857354324,7.06166937,148.89,148.84,6.7185]
[1728857357113,6.7168,148.88,148.84,6.7185]
[1728857357312,0.34526937,148.87,148.84,6.7185]
[1728857360833,0.34526937,148.88,148.84,6.7185]
[1728857363235,0.34526937,148.88,148.85,6.7181]
[1728857363751,0.34526937,148.89,148.85,6.7181]
[1728857364423,24.12215337,148.89,148.83,16.7975]
[1728857364626,6.7172,148.87,148.83,16.7975]
[1728857364820,0.34526937,148.86,148.83,23.5165]
[1728857365926,0.34526937,148.87,148.83,23.5165]
[1728857367444,0.34526937,148.87,148.84,6.7186]
[1728857367834,0.34526937,148.88,148.84,6.7186]
[1728857368550,0.34526937,148.88,148.85,6.7181]
[1728857368752,0.34526937,148.88,148.83,16.7975]
[1728857368923,0.34526937,148.88,148.84,6.7182]
[1728857369253,0.34526937,148.88,148.85,6.7181]
[1728857369826,7.06186937,148.89,148.85,6.7181]
[1728857370034,15.9894,148.9,148.88,6.7167]
[1728857370227,0.34526937,148.91,148.88,6.7167]
[1728857371531,6.715,148.92,148.89,6.7163]
[1728857371532,0.34526937,148.92,148.89,6.7163]
[1728857372332,0.34526937,148.93,148.89,6.7163]
[1728857373425,0.34526937,148.97,148.9,1.34308448]
[1728857373640,7.05796937,148.97,148.92,6.7149]
[1728857374642,0.34526937,148.97,148.94,6.7139]
[1728857374954,0.34526937,148.97,148.92,6.7146]
[1728857375259,0.34526937,148.97,148.92,8.05735286]
[1728857375754,0.34526937,148.97,148.92,6.7146]
[1728857376658,0.34526937,148.97,148.92,8.05735378]
[1728857377657,0.34526937,148.97,148.94,6.714]
[1728857378673,24.12215337,148.97,148.91,16.7878]
[1728857378850,6.7151,148.92,148.88,23.3613]
[1728857379041,0.34526937,148.91,148.87,6.7172]
[1728857380268,7.06086937,148.91,148.85,23.5128]
[1728857380470,7.06086937,148.91,148.86,6.7174]
[1728857381565,6.7149,148.93,148.87,1.34334142]
[1728857381754,0.34526937,148.92,148.87,1.34334142]
[1728857382143,0.34526937,148.95,148.87,1.34334142]
[1728857382454,7.05886937,148.95,148.9,23.5052]
[1728857382650,7.05886937,148.95,148.91,6.7154]
[1728857383241,0.34526937,148.94,148.91,6.7154]
[1728857383543,0.34526937,148.94,148.9,16.7895]
[1728857383869,0.34526937,148.94,148.9,23.5053]
[1728857384561,0.34526937,148.94,148.9,16.7895]
[1728857384869,6.7132,148.96,148.91,6.7154]
[1728857385070,0.34526937,148.95,148.91,6.7154]
[1728857385273,0.34526937,148.95,148.91,8.05835946]
[1728857385464,0.34526937,148.95,148.91,1.34295946]
[1728857385775,0.34526937,148.96,148.92,6.7149]
[1728857394284,0.34526937,148.96,148.91,1.34281974]
[1728857394464,0.34526937,148.97,148.93,6.7143]
[1728857394863,0.34526937,148.99,148.9,22.6502]
[1728857395061,0.34526937,148.99,148.96,6.7131]
[1728857395683,36.1875,149.0,148.96,1.34256541]
[1728857395865,36.1875,149.0,148.98,6.7122]
[1728857398170,0.34526937,148.99,148.96,23.4951]
[1728857398488,36.53276937,149.0,148.96,23.4951]
[1728857398786,36.53276937,149.0,148.97,6.7127]
[1728857399684,0.34526937,148.99,148.96,16.782]
[1728857399866,0.34526937,148.99,148.96,23.4952]
[1728857400572,7.05706937,148.99,148.94,6.7137]
[1728857400773,7.05706937,148.99,148.93,16.7861]
[1728857400774,0.34526937,148.99,148.93,16.7861]
[1728857400983,0.34526937,148.99,148.95,6.7135]
[1728857401567,36.1875,149.0,148.96,1.34260259]
[1728857401782,0.34526937,148.99,148.96,6.7127]
[1728857402078,0.34526937,148.99,148.95,23.4967]
[1728857402685,0.34526937,148.99,148.95,16.7832]
[1728857402862,0.34526937,148.99,148.92,16.7871]
[1728857402863,6.7132,148.96,148.92,16.7871]
[1728857403064,0.34526937,148.95,148.92,23.502]
[1728857403265,0.34526937,148.97,148.93,1.34287309]
[1728857403492,36.53276937,149.0,148.93,1.34287309]
[1728857403788,43.24426937,149.0,148.96,16.7819]
[1728857404092,43.24426937,149.0,148.96,23.495]
[1728857404971,6.7119,148.99,148.95,6.7136]
[1728857405173,0.34526937,148.98,148.95,6.7136]
[1728857405373,0.34526937,148.98,148.94,6.714]
[1728857405564,0.34526937,148.98,148.95,6.7136]
[1728857405876,0.34526937,148.98,148.94,6.714]
[1728857406296,7.05756937,148.98,148.93,23.5006]
[1728857407188,0.34526937,148.98,148.97,6.7127]
[1728857407391,36.1875,149.0,148.98,6.7122]
[1728857408594,0.34526937,148.99,148.98,16.7806]
[1728857408803,0.34526937,148.99,148.96,6.7131]
[1728857409209,36.53276937,149.0,148.95,16.784]
[1728857409379,36.53276937,149.0,148.97,6.7127]
[1728857410279,36.1875,149.0,148.97,6.7127]
[1728857410475,0.34526937,148.99,148.95,16.784]
[1728857410692,0.34526937,148.99,148.95,23.4972]
[1728857410983,0.34526937,148.99,148.96,6.7131]
[1728857412887,36.1875,149.0,148.97,6.7126]
[1728857413079,0.34526937,148.99,148.97,6.7126]
[1728857413287,0.34526937,148.99,148.95,16.784]
[1728857413589,0.34526937,148.99,148.96,6.7131]
[1728857414611,6.7123,148.98,148.92,16.787]
[1728857414781,6.7132,148.96,148.92,16.787]
[1728857414981,0.34526937,148.95,148.92,16.787]
[1728857415391,7.05886937,148.95,148.89,16.7905]
[1728857415593,7.05886937,148.95,148.9,6.7155]
[1728857415884,7.05886937,148.95,148.89,16.7905]
[1728857415885,6.7142,148.94,148.89,23.5068]
[1728857416210,15.9649,148.9,148.81,6.5057]
[1728857416407,6.7169,148.88,148.82,23.5172]
[1728857416715,0.34526937,148.87,148.83,6.719]
[1728857419104,0.34526937,148.89,148.83,1.34368094]
[1728857419285,0.34526937,148.89,148.85,6.7177]
[1728857419684,6.7168,148.88,148.82,23.5171]
[1728857419987,0.34526937,148.87,148.82,23.5171]
[1728857420804,0.34526937,148.87,148.82,18.14163359]
[1728857421013,0.34526937,148.87,148.83,6.7189]
[1728857421213,0.34526937,148.88,148.83,6.7189]
[1728857421812,7.06216937,148.88,148.83,6.7189]
[1728857422035,7.06216937,148.88,148.82,23.5173]
[1728857422911,0.34526937,148.88,148.82,23.5173]
[1728857423116,6.7175,148.87,148.82,23.5173]
[1728857423421,0.34526937,148.86,148.82,23.5173]
[1728857424623,6.7168,148.88,148.82,23.5173]
[1728857424829,0.34526937,148.89,148.82,23.5173]
[1728857424830,0.34526937,148.89,148.83,1.34372703]
[1728857424995,0.34526937,148.89,148.84,6.7186]
[1728857425196,7.06176937,148.89,148.84,6.7186]
[1728857425919,6.7168,148.88,148.82,23.5169]
[1728857426223,0.34526937,148.87,148.83,6.719]
[1728857428705,15.1246,148.84,148.75,33.612]
[1728857428899,15.1246,148.84,148.74,6.0999]
[1728857428900,6.7205,148.8,148.74,6.0999]
[1728857429100,15.1246,148.84,148.74,12.8229]
[1728857429101,7.06616937,148.79,148.74,12.8229]
[1728857429328,0.34526937,148.78,148.74,6.723]
[1728857429503,6.7204,148.8,148.74,6.723]
[1728857429704,7.06616937,148.79,148.74,6.723]
[1728857429931,0.34526937,148.79,148.72,15.1688]
[1728857430101,0.34526937,148.83,148.78,6.7212]
[1728857430297,0.34526937,148.83,148.73,17.13009437]
[1728857430502,0.34526937,148.83,148.76,16.8044]
[1728857430702,6.7195,148.82,148.76,23.5265]
[1728857430919,0.34526937,148.81,148.76,16.8044]
[1728857431105,0.34526937,148.83,148.79,6.7204]
[1728857431636,7.06426937,148.83,148.78,23.5237]
[1728857433135,0.34526937,148.83,148.78,23.5237]
[1728857433513,7.06446937,148.83,148.78,23.5237]
[1728857435540,6.72,148.81,148.76,12.8217]
[1728857435836,6.7196,148.82,148.77,6.7217]
[1728857436015,0.34526937,148.81,148.77,6.7217]
[1728857436524,7.06526937,148.81,148.76,12.822]
[1728857436840,7.06526937,148.81,148.76,14.16624326]
[1728857437433,0.34526937,148.81,148.72,16.8097]
[1728857437636,24.12215337,148.83,148.72,16.8097]
[1728857437814,6.7218,148.77,148.72,16.8097]
[1728857438012,0.34526937,148.76,148.72,16.8097]
[1728857438239,6.7214,148.78,148.73,6.7235]
[1728857438413,0.34526937,148.77,148.73,6.7235]
[1728857439163,24.12215337,148.82,148.74,16.807]
[1728857439325,0.34526937,148.82,148.75,1.34424956]
[1728857439646,0.34526937,148.82,148.78,6.7212]
[1728857439848,0.34526937,148.82,148.78,23.5237]
[1728857440146,7.06476937,148.82,148.78,23.5237]
[1728857440321,0.34526937,148.81,148.78,23.5237]
[1728857441054,0.34526937,148.83,148.79,6.7207]
[1728857442148,0.34526937,148.83,148.78,16.8025]
[1728857442469,7.06436937,148.83,148.78,23.5237]
[1728857442648,6.7195,148.82,148.78,23.5237]
[1728857442818,0.34526937,148.81,148.78,23.5237]
[1728857443620,0.34526937,148.82,148.78,23.5237]
[1728857444342,7.06476937,148.82,148.78,23.5237]
[1728857445420,7.06476937,148.82,148.78,16.8025]
[1728857445642,0.34526937,148.82,148.76,6.7219]
[1728857445867,24.12215337,148.83,148.76,6.7219]
[1728857446025,6.7204,148.8,148.76,6.7219]
[1728857446231,0.34526937,148.79,148.76,6.7219]
[1728857446626,0.34526937,148.82,148.77,1.34424161]
[1728857446939,0.34526937,148.82,148.79,6.7208]
[1728857447655,0.34526937,148.83,148.79,6.7208]
[1728857448735,15.1246,148.84,148.8,1.34397928]
[1728857449148,15.46986937,148.84,148.8,6.7203]
[1728857450163,6.7191,148.83,148.79,16.8013]
[1728857450337,0.34526937,148.82,148.79,23.5221]
[1728857450534,0.34526937,148.82,148.79,16.8013]
[1728857450937,7.06476937,148.82,148.78,6.7212]
[1728857451136,7.06476937,148.82,148.77,6.7217]
[1728857451364,0.34526937,148.82,148.76,16.805]
[1728857451739,6.7204,148.8,148.76,16.805]
[1728857451927,0.34526937,148.79,148.76,16.805]
[1728857452230,23.776884,148.83,148.76,23.5271]
[1728857452231,0.34526937,148.82,148.76,23.5271]
[1728857452427,6.72,148.81,148.76,23.5271]
[1728857452665,0.34526937,148.8,148.76,23.5271]
[1728857453358,0.34526937,148.81,148.77,6.7217]
[1728857453557,7.06526937,148.81,148.76,23.5271]
[1728857455461,0.34526937,148.81,148.74,13.3163]
[1728857455771,0.34526937,148.82,148.74,6.7231]
[1728857456339,6.7209,148.79,148.74,6.7231]
[1728857456555,0.34526937,148.78,148.74,6.7231]
[1728857457165,7.06666937,148.78,148.74,6.7231]
[1728857458071,6.7209,148.79,148.74,6.7231]
[1728857458366,6.7209,148.79,148.75,1.3444006]
[1728857458772,6.7209,148.79,148.75,1.34439967]
[1728857459145,0.34526937,148.78,148.74,6.7231]
[1728857461343,7.06696937,148.78,148.73,6.7234]
[1728857461537,0.34526937,148.78,148.72,16.8091]
[1728857461738,6.7214,148.78,148.73,6.7234]
[1728857461938,7.06706937,148.77,148.72,23.533]
[1728857462247,6.7209,148.79,148.73,1.34449301]
[1728857462569,0.34526937,148.78,148.75,6.7226]
[1728857462869,0.34526937,148.78,148.74,6.723]
[1728857463052,0.34526937,148.78,148.75,6.7225]
[1728857463235,0.34526937,148.78,148.73,6.7232]
[1728857463855,0.34526937,148.78,148.74,6.7228]
[1728857464844,6.7219,148.77,148.72,23.533]
[1728857465048,0.34526937,148.76,148.72,23.533]
[1728857466081,15.5748,148.78,148.73,1.34458737]
[1728857466372,0.34526937,148.8,148.76,6.7221]
[1728857467363,7.06556937,148.81,148.77,8.0659754]
[1728857467868,0.34526937,148.81,148.77,8.0659754]
[1728857468664,16.0328,148.82,148.78,6.7211]
[1728857468868,7.06436937,148.83,148.79,1.34403745]